Cogmind - Beta 9.3 @@@ ROGUE MODE // 2019.12.16 @ 21:50:34 Player: fartblaster Result: Destroyed by G-47 Trooper with Particle Gun Performance ------------- Evolutions (0) 0 Regions Visited (2) 400 Robots Destroyed (19) 95 Value Destroyed (340) 340 Prototype IDs (0) 0 Alien Tech Used (0) 0 Bonus (0) 0 TOTAL SCORE: 835 Bonus ------- None Cogmind --------- Core Integrity 0/250 Matter 300/300 Energy 100/100 System Corruption 0% Temperature Cool (9) Movement Core (400) Ox7 Location -10/Mines Parts ------- > --- POWER (1) -------- (None) > --- PROPULSION (2) --- Aluminum Leg > --- UTILITY (2) ------ Medium Storage Unit Large Storage Unit > --- WEAPON (2) ------- (None) > --- INVENTORY (14) --- Light Ion Engine Light Ion Engine Small Storage Unit Peak State ------------ > --- POWER ------------ Light Ion Engine > --- PROPULSION ------- Aluminum Leg Aluminum Leg > --- UTILITY ---------- Small Storage Unit Large Matter Pod > --- WEAPON ----------- EM Pulse Gun Medium Laser > --- INVENTORY -------- Light Ion Engine High-capacity Storage Unit EM Pulse Gun [Rating: 7] Favorites ----------- Power Light Ion Engine Engine Light Ion Engine Propulsion Aluminum Leg Leg Aluminum Leg Utility Large Storage Unit Storage Large Storage Unit Weapon EM Pulse Gun Energy Gun EM Pulse Gun Build | -11 -10 -10 ------- Run | Scr Mat Min Slots Evolved . | . . . Power . | . . . Propulsion . | . . . Utility . | . . . Weapon . | . . . Parts Attached 20 | 6 14 . Power 4 | 1 3 . Engine 4 | 1 3 . Core . | . . . Reactor . | . . . Propulsion 6 | 2 4 . Treads . | . . . Leg 6 | 2 4 . Wheel . | . . . Hover . | . . . Flight . | . . . Utility 5 | 1 4 . Device . | . . . Storage 5 | 1 4 . Processor . | . . . Hackware . | . . . Protection . | . . . Artifact . | . . . Weapon 5 | 2 3 . Energy Gun 5 | 2 3 . Energy Cannon . | . . . Ballistic Gun . | . . . Ballistic Cannon . | . . . Launcher . | . . . Special Weapon . | . . . Impact Weapon . | . . . Slashing Weapon . | . . . Piercing Weapon . | . . . Special Melee Weapon . | . . . Unidentified Prototypes . | . . . Parts Lost 10 | . 6 4 Power 3 | . 2 1 Propulsion 2 | . 1 1 Utility 1 | . 1 . Weapon 4 | . 2 2 Highest Loss Streak 6 | . 6 4 Average Slot Usage (%) 93 | . 92 95 Engine 12 | . 12 13 Leg 27 | . 27 27 Storage 26 | . 25 28 Energy Gun 25 | . 25 25 Naked Turns . | . . . Heaviest Build 32 | 11 32 32 Greatest Support 20 | 20 20 20 Greatest Overweight (x) 10 | . 10 2 Average Overweight (x) . | . . 1 Largest Inventory Capacity 14 | 6 14 14 Average Capacity 10 | 4 9 14 Most Carried 5 | 2 5 4 Average Carried 2 | . 3 2 Final Capacity 14 | 6 14 14 Final Carried 3 | 2 2 3 Class Distribution -------------------- 100% | Mutant Dominant Class ---------------- Mutant | -10/Materials Mutant | -10/Mines Resources | -11 -10 -10 ----------- Run | Scr Mat Min Matter Collected 385 | 186 169 30 Remotely . | . . . Salvage Created 549 | . 466 83 Parts 42 | . 31 11 Haulers Intercepted 1 | . 1 . Recyclers Shooed 1 | . 1 . Parts Field Recycled . | . . . Retrieved Matter . | . . . Parts Self-Destructed . | . . . Prevented . | . . . Kills | -11 -10 -10 ------- Run | Scr Mat Min Combat Hostiles Destroyed 14 | . 10 4 Guns 11 | . 7 4 AOE 3 | . 3 . Classes Destroyed 6 | . 6 . Tunneler 1 | . 1 . Hauler 1 | . 1 . Recycler 2 | . 2 . Watcher 1 | . 1 . Swarmer 9 | . 6 3 Grunt 5 | . 4 1 Best Kill Streak 5 | . 5 3 Combat Bots Only 4 | . 4 3 Max Kills in Single Turn 4 | . 4 1 Gunslinging . | . . . Exploded 3 | . 3 . Melee . | . . . Uniques/NPCs Destroyed . | . . . Combat | -11 -10 -10 -------- Run | Scr Mat Min Damage Taken 901 | . 550 351 Core 263 | . 136 127 Absorbed by Shields . | . . . Core Remaining (%) 100 | 100 . . Volleys Fired 41 | . 31 10 Largest 2 | . 2 2 Hottest 90 | . 90 80 Shots Fired 60 | . 42 18 Gun 60 | . 42 18 Cannon . | . . . Launcher . | . . . Special . | . . . Kinetic . | . . . Thermal 21 | . 11 10 Explosive . | . . . Electromagnetic 39 | . 31 8 Robot Hit Streak 8 | . 8 7 Robot Miss Streak 3 | . 3 3 Penetration Max . | . . . Secondary Targets . | . . . Shots Hit Robots 38 | . 27 11 Core Hits 31 | . 19 12 Critical Hits . | . . . Critical Kills . | . . . Critical Parts Destroyed . | . . . Melee Attacks . | . . . Impact . | . . . Slashing . | . . . Piercing . | . . . Sneak Attacks . | . . . Combat Hostiles . | . . . Follow-up Attacks . | . . . Damage Inflicted 1069 | . 901 168 Guns 520 | . 393 127 Cannons . | . . . Explosions 508 | . 508 . Melee . | . . . Ramming 41 | . . 41 Kinetic . | . . . Thermal 452 | . 364 88 Explosive 218 | . 218 . Electromagnetic 358 | . 319 39 Impact . | . . . Slashing . | . . . Piercing . | . . . Highest Corruption . | . . . Average Corruption . | . . . Corruption Purged . | . . . Overload Shots . | . . . Overflow Damage 54 | . 54 . Projectiles . | . . . Explosions 54 | . 54 . Melee . | . . . Knockbacks 1 | . . 1 Impact 1 | . . 1 Kinetic . | . . . Secondary . | . . . Self-Inflicted Damage 168 | . 163 5 Shots 3 | . 3 . Rammed 7 | . . 7 Targets Rammed 11 | . . 11 Kicked 4 | . . 4 Crushed . | . . . Highest Temperature 90 | . 90 90 Average Temperature 32 | . 28 39 Received Heat Transfer 300 | . 132 168 Siege Activations . | . . . Robots Corrupted . | . . . Combat Hostiles . | . . . Parts Fried 1 | . 1 . Impact Corruptions . | . . . Robots Melted . | . . . Combat Hostiles . | . . . Parts Melted . | . . . Heat Transferred 622 | . 422 200 Parts Sabotaged . | . . . Parts Stolen . | . . . Parts Stripped . | . . . Power Chain Reactions 2 | . 2 . Missiles Intercepted . | . . . Alert | -11 -10 -10 ------- Run | Scr Mat Min Peak Influence 269 | . 269 131 Average Influence 94 | . 104 95 Maximum Alert Level 1 | . 1 . Low Security (%) 95 | 100 92 100 Level 1 4 | . 7 . Level 2 . | . . . Level 3 . | . . . Level 4 . | . . . Level 5 . | . . . High Security . | . . . Max Security . | . . . Squads Dispatched 1 | . 1 . Investigation . | . . . Extermination . | . . . Reinforcement 1 | . 1 . Assault . | . . . Garrison . | . . . Intercept . | . . . Construction Impeded . | . . . Haulers Reinforced . | . . . Stealth | -11 -10 -10 --------- Run | Scr Mat Min Distress Signals . | . . . Communications Jammed . | . . . Distress Signals . | . . . Times Spotted 19 | . 15 4 Peak Tracking Total 4 | . 4 2 Tactical Retreats 1 | . 1 . Traps | -11 -10 -10 ------- Run | Scr Mat Min Traps Triggered 1 | . 1 . Indirectly . | . . . Trap Hack Attempts . | . . . Triggered . | . . . Disarmed . | . . . Reprogrammed . | . . . Reused . | . . . Traps Extracted . | . . . Installed . | . . . Triggered . | . . . Machines | -11 -10 -10 ---------- Run | Scr Mat Min Machines Disabled 3 | . 3 . Max in Single Turn 3 | . 3 . Machines Sabotaged . | . . . Garrisons Compromised . | . . . Overloaded Fab Kills . | . . . Fab Network Shutdowns . | . . . Hacking | -11 -10 -10 --------- Run | Scr Mat Min Machines Accessed . | . . . Terminals . | . . . Fabricators . | . . . Repair Stations . | . . . Recycling Units . | . . . Scanalyzers . | . . . Garrison Access . | . . . Total Hacks . | . . . Successful . | . . . Failed . | . . . Catastrophic . | . . . Database Lockouts . | . . . Manual . | . . . Terminals . | . . . Fabricators . | . . . Repair Stations . | . . . Recycling Units . | . . . Scanalyzers . | . . . Garrison Access . | . . . Terminal Hacks . | . . . Fabricator Hacks . | . . . Repair Station Hacks . | . . . Recycling Unit Hacks . | . . . Scanalyzer . | . . . Garrison Access Hacks . | . . . Unauthorized Hacks . | . . . Terminals . | . . . Fabricators . | . . . Repair Stations . | . . . Recycling Units . | . . . Scanalyzers . | . . . Garrison Access . | . . . Data Cores Recovered . | . . . Used . | . . . Hacking Detections . | . . . Full Trace Events . | . . . Feedback Events . | . . . Feedback Blocked . | . . . Robot Schematics Acquired . | . . . Robots Built . | . . . Matter . | . . . Time . | . . . Total Robot Build Rating . | . . . Part Schematics Acquired . | . . . Parts Built . | . . . Matter . | . . . Time . | . . . Total Part Build Rating . | . . . Parts Repaired . | . . . Time . | . . . Parts Recycled . | . . . Recycled Matter . | . . . Retrieved Matter . | . . . Retrieved Components . | . . . Parts Scanalyzed . | . . . Part Schematics Acquired . | . . . Parts Damaged . | . . . Bothacking | -11 -10 -10 ------------ Run | Scr Mat Min Used RIF Installer . | . . . Robots Hacked . | . . . Non-combat . | . . . Combat . | . . . Robot Hacks Applied . | . . . Relay Couplers Released . | . . . Robots Rewired . | . . . Allies Hacked . | . . . Hacks Repelled . | . . . Allies | -11 -10 -10 -------- Run | Scr Mat Min Total Allies . | . . . Largest Group . | . . . Highest-Rated Group . | . . . Highest-Rated Ally . | . . . Total Orders . | . . . Ally Attacks . | . . . Total Damage . | . . . Kills . | . . . Allies Corrupted . | . . . Allies Melted . | . . . Intel | -11 -10 -10 ------- Run | Scr Mat Min Robot Analysis Total . | . . . Derelict Logs Recovered 1 | . . 1 Drone Launches . | . . . Drone Recoveries . | . . . Exploration | -11 -10 -10 ------------- Run | Scr Mat Min Turns Passed 893 | 63 522 308 Spaces Moved 522 | 53 300 169 Core 17 | 16 1 . Treads . | . . . Legs 505 | 37 299 169 Wheels . | . . . Hover . | . . . Flight . | . . . Fastest Speed 50 | 50 120 150 Average Speed 136 | 98 135 150 Slowest Speed 550 | 120 550 180 Overloaded Moves . | . . . Propulsion Burnouts . | . . . Robots Hopped . | . . . Cave-ins Triggered . | . . . Exploration Rate (%) 35 | 4 54 47 Regions Visited 2 Branch Regions 1 Pre-discovered Areas . | . . . Known Exits Taken . | . . . Unknown Exits Taken 2 | 1 1 . Scrap Searched . | . . . Spaces Dug . | . . . Terrain Destroyed 44 | . 44 . Melee . | . . . Projectile . | . . . AOE 44 | . 44 . Actions | -11 -10 -10 --------- Run | Scr Mat Min Total 623 | 60 370 193 Wait 24 | . 24 . Move 520 | 52 299 169 Hop . | . . . Pick Up 5 | 2 1 2 Fast Attach 13 | 6 7 . Attach 3 | . 3 . Detach . | . . . Swap 4 | . 4 . Drop 2 | . 1 1 Fire 41 | . 31 10 Melee . | . . . Ram 2 | . . 2 Kick 9 | . . 9 Crush . | . . . Escape Stasis . | . . . Rewire . | . . . Trap . | . . . Miscellaneous . | . . . Route ------- -11/Scrapyard -10/Materials (discovered 3 exits: [*Mat x2] / [*Min]) -10/Mines History --------- Turn | Location | Event 8 | -11/Scrapyard | Discovered new exit (range 15) 64 | -11/Scrapyard | Entered Materials 261 | -10/Materials | Discovered new exit (range 14) 325 | -10/Materials | Build established: Mutant 366 | -10/Materials | Discovered new exit (range 12) 449 | -10/Materials | Core integrity fell below 50% 483 | -10/Materials | Lost 6 parts (2p1n1u2w) 510 | -10/Materials | Discovered new exit (range 10) 586 | -10/Materials | Entered Mines 650 | -10/Mines | Learned 2 Materials zone layouts 885 | -10/Mines | Core integrity fell below 20% 894 | -10/Mines | Destroyed by G-47 Trooper with Particle Gun Last Messages --------------- 00864_ R-06 Scavenger collects Ion Engine. 00866_ Sml. Laser destroyed. 00867_ Slammed into G-47 Trooper. 00868_ G-47 Trooper IFF system glitched. 00869_ K-01 Serf collects debris. 00869_ Kicked G-47 Trooper out of the way. 00870_ G-47 Trooper knocked back. 00872_ Slammed into R-06 Scavenger. 00873_ K-01 Serf collects debris. 00873_ Kicked R-06 Scavenger out of the way. 00874_ Ion Engine destroyed. 00876_ Aluminum Leg destroyed. 00878_ Slammed into G-47 Trooper. 00884_ U-05 Engineer lays Concrete. 00884_ Slammed into G-47 Trooper. 00884_ Destabilizing: Short circuit. 00884_ Broken Aluminum Leg permanently disabled. 00888_ Slammed into G-47 Trooper. 00888_ K-01 Serf collects debris. 00892_ Slammed into G-47 Trooper. Map ----- +----------------------------------------------------+ | | | | | | | | | | | | | | | | | | | | | | | ????????????????????????????????????????????????? | | ????????????????????????????????????????????????? | | ????????????????????????????????????????????????? | | ????????????????????????????????###?????????????? | | ??????????????###???????####???# ##????????????? | | ??????????????# ##????## ##?# ###??????????? | | ??????????????# #????? ## ##?????????? | | ??????????????# ##???? ##????????? | | ???????????????# #????# ##???????? | | ??????????????## ##???# ??????? | | ?????????????## ###?# ??????? | | ?????????????# ### ?????? | | ?????????????# k % u ?????? | | ??????###????## %g%%%% ?????? | | ?????## #????## ###@ % #???????? | | ?????# ????## #?# % ## ###????????? | | ?????# ##?## #?# % u ##????##??????????? | | ?????# ### ##?# ###?????????????????? | | ??????# ###??# ##???????????????????? | | ??????# ####????# ##????????????????????? | | ??????## ##???????# #????????????####?????? | | ???????# ##???????## ############## ##????? | | ???????## #######??# k % #????? | | ????????# ## #### ######### ##???? | | ????????## #?? ???# #???????# #???? | | ?????????## ## #?? ##### #???????## ##??? | | ??????????## ### #?###?# #????????## #### | | ???????????####?# #?????# ####?????????## | | ????????????????# #?????# #?????????????## | | ???????????????## ####### #??????????????# # | | ???????????????# #?????????????## ## | | ??????????????# #########????????????## ##? | | ?????????????# ????????????????????# ##?? | | ????????????# ???????????????????## ##??? | | ??????????# #??????????????????# ##??? | | ?????????# ??????????????????# ##?? | | ???????? ??????????????????# ##? | | ??????# """ ?????????????????## ## | | ??????# """ ## ??????????????????## # | +----------------------------------------------------+ Best States ------------- Heat Dissipation 25 Energy Generation 10 Energy Capacity 250 Matter Stores 300 Matter Capacity 450 Sight Range 16 Terrain Scan Density 10 Evasion (%) 50 Item Schematics ----------------- None Robot Schematics ------------------ None Fabricated ------------ Nothing Alien Tech Used ----------------- None Achievements -------------- None Challenges ------------ None Game ------ Seed MissileProcessingWarhead Manual? 0 Play Time 00:09:01 Cumulative 16.5 hours Start 2019.12.16 @ 21:42:48 End 2019.12.16 @ 21:50:34 Sessions 1 Manual Loads 0 Difficulty Rogue Special Mode None Game No. 49 Rogue 49 Adventurer 0 Explorer 0 Win Type - Total 0 Types 0/0/0/0/0/0/0 Lore% 7 Gallery% 20 Achievement% 13 Wizard Run 0 Options --------- ASCII 0 Keyboard 1 Movement Numpad Keybinds 0 Fullscreen 1 Font 18/SmallcapsGlow Map View 76x50 Tactical HUD 1 Map Filters NONE Filters NONE Steam 1 RUN: a88a27fb-9d49-49a6-aca3-dfa29f2e0314